fUST/lending_fUST_20260304
["ID","MTS","AMOUNT","RATE_DAILY","PERIOD"]
[407654273,1772619043540,-500.0,0.00010958,2]
[407654275,1772619043549,-1658.36,0.00010958,2]
[407654277,1772619043558,-500.0,0.00010958,2]
[407654279,1772619043567,-670.76,0.00010958,2]
[407654281,1772619043577,-3907.22,0.00010958,2]
[407654283,1772619043586,-500.0,0.00010958,2]
[407654285,1772619043596,-500.0,0.00010958,2]
[407654286,1772619043606,-500.0,0.00010958,2]
[407654288,1772619043615,-816.42,0.00010958,2]
[407654290,1772619043624,-1474.75,0.00010958,2]
[407654292,1772619043634,-1585.47,0.00010958,2]
[407654294,1772619043642,-500.0,0.00010958,2]
[407654296,1772619043652,-885.62,0.00010958,2]
[407654298,1772619043662,-500.0,0.00010958,2]
[407654300,1772619043671,-500.0,0.00010958,2]
[407654302,1772619043681,-2546.54,0.00010958,2]
[407654304,1772619043690,-500.0,0.00010958,2]
[407654306,1772619043699,-9227.02,0.00010958,2]
[407654308,1772619043709,-688.29,0.00010958,2]
[407654310,1772619043718,-1541.82,0.00010958,2]
[407654312,1772619043726,-1056.47,0.00010958,2]
[407654314,1772619043735,-500.0,0.00010958,2]
[407654316,1772619043744,-500.0,0.00010958,2]
[407654318,1772619043753,-2572.97,0.00010958,2]
[407654320,1772619043763,-1182.0,0.00010958,2]
[407654322,1772619043772,-500.0,0.00010958,2]
[407654323,1772619043781,-500.0,0.00010958,2]
[407654324,1772619043791,-3356.39,0.00010958,2]
[407654325,1772619043801,-3103.7,0.00010958,2]
[407654326,1772619043815,-354.92200852,0.00010958,2]
[407654327,1772619043826,-500.0,0.00010958,2]
[407654328,1772619043835,-2340.3,0.00010958,2]
[407654329,1772619043844,-500.0,0.00010958,2]
[407654330,1772619043854,-500.0,0.00010958,2]
[407654331,1772619043863,-500.0,0.00010958,2]
[407654332,1772619043873,-2018.36,0.00010958,2]
[407654333,1772619043884,-500.0,0.00010958,2]
[407654334,1772619043894,-500.0,0.00010958,2]
[407654335,1772619043904,-500.0,0.00010958,2]
[407654336,1772619043913,-735.46,0.00010958,2]
[407654337,1772619043922,-1091.21,0.00010958,2]
[407654338,1772619043932,-500.0,0.00010958,2]
[407654339,1772619043941,-500.0,0.00010958,2]
[407654340,1772619043951,-500.0,0.00010958,2]
[407654341,1772619043960,-4788.19,0.00010958,2]
[407654342,1772619043970,-500.0,0.00010958,2]
[407654343,1772619043980,-770.1,0.00010958,2]
[407654345,1772619043989,-4100.83,0.00010958,2]
[407654347,1772619043998,-500.0,0.00010958,2]
[407654348,1772619044009,-551.90061943,0.00010958,2]
[407654349,1772619044018,-826.04,0.00010958,2]
[407654350,1772619044027,-500.0,0.00010958,2]
[407654351,1772619044037,-768.94,0.00010958,2]
[407654352,1772619044047,-500.0,0.00010958,2]
[407654353,1772619044058,-2013.63,0.00010958,2]
[407654354,1772619044067,-5367.11,0.00010958,2]
[407654355,1772619044076,-500.0,0.00010958,2]
[407654356,1772619044086,-500.0,0.00010958,2]
[407654357,1772619044095,-500.0,0.00010958,2]
[407654358,1772619044104,-500.0,0.00010958,2]
[407654359,1772619044113,-500.0,0.00010958,2]
[407654360,1772619044123,-15596.9,0.00010958,2]
[407654361,1772619044132,-817.73,0.00010958,2]
[407654362,1772619044141,-500.0,0.00010958,2]
[407654363,1772619044150,-500.0,0.00010958,2]
[407654364,1772619044160,-6787.26,0.00010958,2]
[407654365,1772619044170,-3671.0,0.00010958,2]
[407654366,1772619044179,-500.0,0.00010958,2]
[407654367,1772619044188,-500.0,0.00010958,2]
[407654368,1772619044198,-15903.55,0.00010958,2]
[407654369,1772619044207,-348.30279508,0.00010958,2]
[407654370,1772619044216,-551.49,0.00010958,2]
[407654371,1772619044226,-500.0,0.00010958,2]
[407654372,1772619044236,-710.81,0.00010958,2]
[407654373,1772619044246,-500.0,0.00010958,2]
[407654374,1772619044255,-500.0,0.00010958,2]
[407654375,1772619044265,-379.25501888,0.00010958,2]
[407654376,1772619044275,-2197.2,0.00010958,2]
[407654377,1772619044287,-1005.85,0.00010958,2]
[407654378,1772619044296,-500.0,0.00010958,2]
[407654379,1772619044307,-3342.49,0.00010958,2]
[407654380,1772619044317,-1805.54,0.00010958,2]
[407654381,1772619044327,-500.0,0.00010958,2]
[407654382,1772619044337,-500.0,0.00010958,2]
[407654383,1772619044348,-853.88,0.00010958,2]
[407654384,1772619044358,-500.0,0.00010958,2]
[407654385,1772619044368,-500.0,0.00010958,2]
[407654386,1772619044380,-500.0,0.00010958,2]
[407654387,1772619044390,-500.0,0.00010958,2]
[407654388,1772619044400,-2250.86,0.00010958,2]
[407654389,1772619044410,-500.0,0.00010958,2]
[407654390,1772619044420,-500.0,0.00010958,2]
[407654391,1772619044430,-17775.52,0.00010958,2]
[407654392,1772619044440,-919.83,0.00010958,2]
[407654393,1772619044451,-500.0,0.00010958,2]
[407654394,1772619044460,-500.0,0.00010958,2]
[407654395,1772619044470,-710.68,0.00010958,2]
[407654396,1772619044480,-2618.78,0.00010958,2]
[407654397,1772619044490,-670.99,0.00010958,2]
[407654398,1772619044712,-500.0,0.00010958,2]
[407654399,1772619044723,-801.9,0.00010958,2]
[407654400,1772619044733,-6388.26,0.00010958,2]
[407654401,1772619044742,-742.17,0.00010958,2]
[407654402,1772619044752,-263.48307356,0.00010958,2]
[407654403,1772619044763,-500.0,0.00010958,2]
[407654404,1772619044774,-2167.69,0.00010958,2]
[407654405,1772619044785,-500.0,0.00010958,2]
[407654406,1772619044794,-987.31,0.00010958,2]
[407654407,1772619044804,-500.0,0.00010958,2]
[407654408,1772619044815,-500.0,0.00010958,2]
[407654409,1772619044825,-500.0,0.00010958,2]
[407654410,1772619044835,-11226.96,0.00010958,2]
[407654411,1772619044845,-500.0,0.00010958,2]
[407654412,1772619044854,-3117.04,0.00010958,2]
[407654413,1772619044863,-3771.67,0.00010958,2]
[407654414,1772619044873,-3107.68,0.00010958,2]
[407654415,1772619044882,-1600.2,0.00010958,2]
[407654416,1772619044891,-1904.46,0.00010958,2]
[407654417,1772619044901,-500.0,0.00010958,2]
[407654418,1772619044910,-2138.81,0.00010958,2]
[407654419,1772619044919,-7749.57,0.00010958,2]
[407654420,1772619044930,-5650.02,0.00010958,2]
[407654421,1772619044939,-500.0,0.00010958,2]
[407654422,1772619044948,-2479.36,0.00010958,2]
[407654423,1772619044957,-753.11,0.00010958,2]
[407654424,1772619044967,-500.0,0.00010958,2]
[407654425,1772619044976,-203.44050679,0.00010958,2]
[407654426,1772619044986,-5364.48,0.00010958,2]
[407654427,1772619044996,-842.07,0.00010958,2]
[407654428,1772619045006,-500.0,0.00010958,2]
[407654429,1772619045015,-500.0,0.00010958,2]
[407654430,1772619045023,-2822.5,0.00010958,2]
[407654431,1772619045032,-44716.57,0.00010958,2]
[407654432,1772619045041,-500.0,0.00010958,2]
[407654433,1772619045052,-500.0,0.00010958,2]
[407654434,1772619045063,-1252.1,0.00010958,2]
[407654435,1772619045072,-500.0,0.00010958,2]
[407654436,1772619045082,-500.0,0.00010958,2]
[407654437,1772619045092,-2317.29,0.00010958,2]
[407654438,1772619045101,-673.63,0.00010958,2]
[407654439,1772619045111,-539.92,0.00010958,2]
[407654440,1772619045120,-5994.18,0.00010958,2]
[407654441,1772619045130,-12474.84,0.00010958,2]
[407654442,1772619045140,-6848.41,0.00010958,2]
[407654443,1772619045150,-11936.57,0.00010958,2]
[407654444,1772619045160,-638.29,0.00010958,2]
[407654445,1772619045171,-500.0,0.00010958,2]
[407654446,1772619045182,-500.0,0.00010958,2]
[407654447,1772619045193,-2004.09,0.00010958,2]
[407654448,1772619045203,-500.0,0.00010958,2]
[407654449,1772619045213,-500.0,0.00010958,2]
[407654450,1772619045223,-706.39,0.00010958,2]
[407654451,1772619045232,-5627.59,0.00010958,2]
[407654452,1772619045242,-25556.04,0.00010958,2]
[407654453,1772619045252,-1743.31,0.00010958,2]
[407654454,1772619045262,-1529.13,0.00010958,2]
[407654456,1772619045274,-500.0,0.00010958,2]
[407654458,1772619045288,-500.0,0.00010958,2]
[407654460,1772619045302,-500.0,0.00010958,2]
[407654461,1772619045314,-366.92381197,0.00010958,2]
[407654463,1772619045323,-3211.13,0.00010958,2]
[407654466,1772619045334,-500.0,0.00010958,2]
[407654467,1772619045344,-3561.24,0.00010958,2]
[407654468,1772619045353,-2449.42,0.00010958,2]
[407654469,1772619045362,-1237.97,0.00010958,2]
[407654470,1772619045371,-500.0,0.00010958,2]
[407654471,1772619045379,-10269.73,0.00010958,2]
[407654472,1772619045388,-500.0,0.00010958,2]
[407654473,1772619045397,-500.0,0.00010958,2]
[407654474,1772619045406,-500.0,0.00010958,2]
[407654475,1772619045416,-500.0,0.00010958,2]
[407654476,1772619045426,-500.0,0.00010958,2]
[407654478,1772619045436,-500.0,0.00010958,2]
[407654479,1772619045445,-500.0,0.00010958,2]
[407654480,1772619045454,-1420.23,0.00010958,2]
[407654481,1772619045463,-500.0,0.00010958,2]
[407654482,1772619045473,-500.0,0.00010958,2]
[407654483,1772619045483,-445.00635358,0.00010958,2]
[407654484,1772619045515,-1785.04364642,0.00010958,2]
[407654485,1772619045526,-500.0,0.00010958,2]
[407654486,1772619045537,-672.90622955,0.00010958,2]
[407654488,1772619045549,-4.47377045,0.00010958,2]
[407654489,1772619045560,-2360.65,0.00010958,2]
[407654490,1772619045575,-500.0,0.00010958,2]
[407654491,1772619045584,-1970.66,0.00010958,2]
[407654493,1772619045594,-500.0,0.00010958,2]
[407654494,1772619045604,-250.43145778,0.00010958,2]
[407654496,1772619045614,-4644.61,0.00010958,2]
[407654498,1772619045624,-500.0,0.00010958,2]
[407654499,1772619045633,-500.0,0.00010958,2]
[407654500,1772619045643,-1579.17,0.00010958,2]
[407654502,1772619045652,-3781.29777619,0.00010958,2]
[407654504,1772619045760,-458.53897506,0.00010958,2]
[407654505,1772619046035,-469.07870949,0.00010958,2]
[407654506,1772619046051,-748.05112807,0.00010958,2]
[407654507,1772619047210,-1311.24341119,0.00010958,2]
[407654508,1772619047219,-206.55041439,0.00010958,2]
[407654509,1772619047230,-293.44958561,0.00010958,2]
[407654510,1772619047239,-500.0,0.00010958,2]
[407654511,1772619047248,-613.21356596,0.00010958,2]
[407654512,1772619047256,-349.36958932,0.00010958,2]
[407654513,1772619047745,-5000.0,0.00010848,2]
[407654514,1772619047755,-150.63041068,0.00010958,2]
[407654515,1772619047765,-4104.31,0.00010958,2]
[407654516,1772619047774,-681.8,0.00010958,2]
[407654517,1772619047783,-714.92,0.00010958,2]
[407654518,1772619047793,-500.0,0.00010958,2]
[407654519,1772619047803,-8595.33,0.00010958,2]
[407654520,1772619047813,-4641.44,0.00010958,2]
[407654521,1772619047822,-591.99,0.00010958,2]
[407654522,1772619047832,-500.0,0.00010958,2]
[407654523,1772619047841,-11562.31,0.00010958,2]
[407654524,1772619047852,-500.0,0.00010958,2]
[407654525,1772619047862,-500.0,0.00010958,2]
[407654526,1772619047871,-15213.18,0.00010958,2]
[407654527,1772619047881,-1297.26,0.00010958,2]
[407654528,1772619047890,-500.0,0.00010958,2]
[407654529,1772619047899,-500.0,0.00010958,2]
[407654530,1772619047909,-830.46,0.00010958,2]
[407654531,1772619047918,-500.0,0.00010958,2]
[407654532,1772619047928,-1115.57,0.00010958,2]
[407654533,1772619047937,-151.0,0.00010959,2]
[407654534,1772619047946,-151.0,0.00010959,2]
[407654535,1772619047955,-151.0,0.00010959,2]
[407654536,1772619047964,-151.45977,0.00010959,2]
[407654537,1772619047973,-188.31608559,0.00010959,2]
[407654538,1772619047982,-3000.0,0.0001096,30]
[407654539,1772619047991,-3000.0,0.0001097,30]
[407654540,1772619048000,-1734.58806053,0.0001098,30]
[407654541,1772619048542,-1265.41193947,0.0001098,30]
[407654542,1772619048552,-4743.66691488,0.00010986,2]
[407654543,1772619048561,-222.16145,0.00010989,2]
[407654544,1772619048571,-3000.0,0.0001099,30]
[407654545,1772619048581,-368.04114666,0.00010994,2]
[407654546,1772619048590,-500.0,0.00011,2]
[407654547,1772619048600,-332.71510556,0.00011,2]
[407654548,1772619048610,-157.02,0.00011,2]
[407654549,1772619048619,-599.71135896,0.00011,30]
[407658401,1772619616985,2395.65,0.000157,120]
[407658404,1772620060039,203.00429947,9e-05,3]
[407658405,1772620077410,165.3,9e-05,3]
[407658406,1772620088317,152.2532246,9e-05,3]
[407658407,1772620098468,298.13698014,9e-05,3]
[407658408,1772620122973,298.13698014,9e-05,3]
[407658409,1772620132419,185.93510506,9e-05,3]
[407658410,1772620149901,298.13698014,9e-05,3]
[407658445,1772620231872,-3484.55939436,8.875e-05,2]
[407658447,1772620231884,-3744.56106809,8.965e-05,2]
[407658452,1772620231929,-1255.43893191,8.965e-05,2]
[407658454,1772620231942,-69.0089806,9.056e-05,2]
[407658456,1772620231954,-477.9910194,9.056e-05,2]
[407658458,1772620231964,-470.87142751,9.102e-05,2]
[407658460,1772620231975,-1200.0,9.146e-05,2]
[407658462,1772620231986,-204.43871822,9.239e-05,7]
[407658464,1772620231996,-300.0,9.33e-05,2]
[407658465,1772620232009,-300.0,9.33e-05,2]
[407658466,1772620232019,-300.0,9.33e-05,2]
[407658467,1772620232030,-1680.0,0.00010061,2]
[407658468,1772620232042,-3231.334724,0.00010211,2]
[407658469,1772620232054,-300.0,0.00010211,2]
[407658470,1772620232066,-300.0,0.00010211,2]
[407658471,1772620232079,-300.0,0.00010211,2]
[407658472,1772620232093,-300.0,0.00010211,2]
[407658473,1772620232106,-300.0,0.00010211,2]
[407658474,1772620232117,-300.0,0.00010211,2]
[407658475,1772620232128,-300.0,0.00010211,2]
[407658476,1772620232139,-300.0,0.00010211,2]
[407658477,1772620232151,-300.0,0.00010211,2]
[407658478,1772620232160,-300.0,0.00010211,2]
[407658479,1772620232171,-300.0,0.00010211,2]
[407658480,1772620232182,-300.0,0.00010211,2]
[407658481,1772620232194,-300.0,0.00010211,2]
[407658482,1772620232206,-300.0,0.00010211,2]
[407658483,1772620232219,-300.0,0.00010211,2]
[407658485,1772620232231,-600.0,0.00010211,2]
[407658487,1772620232244,-420.0,0.00010263,2]
[407658489,1772620232255,-2230.315306,0.00010412,2]
[407658491,1772620232266,-500.0,0.00010413,2]
[407658493,1772620232276,-5749.11831588,0.00010414,2]
[407658495,1772620232287,-207.36046003,0.00010471,2]
[407658497,1772620232296,-168.3888056,0.00010508,2]
[407658499,1772620232306,-174.61919141,0.00010508,2]
[407658501,1772620232317,-557.5788265,0.00010508,2]
[407658503,1772620232327,-181.08010149,0.00010508,2]
[407658505,1772620232340,-187.78006525,0.00010508,2]
[407658507,1772620232350,-194.72792766,0.00010508,2]
[407658509,1772620232362,-201.93286099,0.00010508,2]
[407658510,1772620232373,-209.40437684,0.00010508,2]
[407658512,1772620232383,-217.15233878,0.00010508,2]
[407658514,1772620232394,-225.18697532,0.00010508,2]
[407658517,1772620232404,-233.51889341,0.00010508,2]
[407658519,1772620232414,-242.15909246,0.00010508,2]
[407658520,1772620232425,-269.13802547,0.00010508,2]
[407658523,1772620232435,-251.11897888,0.00010508,2]
[407658524,1772620232445,-260.4103811,0.00010508,2]
[407658526,1772620232456,-270.0455652,0.00010508,2]
[407658528,1772620232468,-461.67526834,0.00010508,2]
[407658530,1772620232480,-280.03725112,0.00010508,2]
[407658532,1772620232491,-163.99692889,0.00010508,2]
[407658534,1772620232503,-290.39862941,0.00010508,2]
[407658536,1772620232512,-301.1433787,0.00010508,2]
[407658538,1772620232523,-151.0,0.00010508,2]
[407658540,1772620232535,-151.0,0.00010508,2]
[407658542,1772620232547,-151.0,0.00010508,2]
[407658544,1772620232559,-151.0,0.00010508,2]
[407658546,1772620232568,-151.0,0.00010508,2]
[407658548,1772620232578,-151.0,0.00010508,2]
[407658550,1772620232590,-151.0,0.00010508,2]
[407658552,1772620232602,-151.0,0.00010508,2]
[407658553,1772620232613,-151.0,0.00010508,2]
[407658555,1772620232626,-151.0,0.00010508,2]
[407658557,1772620232641,-154.04416148,0.00010508,2]
[407658559,1772620232653,-14393.37115444,0.00010514,2]
[407658560,1772620232663,-750.873,0.0001052,2]
[407658561,1772620232676,-731.0,0.0001052,2]
[407658562,1772620232688,-433.0,0.0001052,2]
[407658563,1772620232700,-173.277,0.00010588,2]
[407658564,1772620232712,-500.0,0.00010678,2]
[407658565,1772620232722,-500.0,0.00010678,2]
[407658566,1772620232733,-500.0,0.00010687,2]
[407658567,1772620232743,-476.1509098,0.000107,2]
[407658568,1772620232757,-92.62964691,0.000107,2]
[407658569,1772620232768,-532.65722227,0.000107,2]
[407658570,1772620232782,-57.71313082,0.00010733,2]
[407658601,1772620238250,-500.0,0.0001041,2]
[407658602,1772620238260,-615.17045602,0.0001041,2]
[407658603,1772620238270,-500.0,0.0001041,2]
[407658604,1772620238279,-500.0,0.0001041,2]
[407658605,1772620238288,-511.15011709,0.0001041,2]
[407658606,1772620238298,-500.0,0.0001041,2]
[407658607,1772620238307,-500.0,0.0001041,2]
[407658608,1772620238316,-500.0,0.0001041,2]
[407658609,1772620238326,-122.00738164,0.0001041,2]
[407658610,1772620238337,-377.99261836,0.0001041,2]
[407658611,1772620238349,-500.0,0.0001041,2]
[407658612,1772620238361,-500.0,0.0001041,2]
[407658613,1772620238372,-500.0,0.0001041,2]
[407658614,1772620238382,-588.95648111,0.0001041,2]
[407658615,1772620238392,-423.63033351,0.0001041,2]
[407658616,1772620238401,-500.0,0.0001041,2]
[407658617,1772620238412,-500.0,0.0001041,2]
[407658618,1772620238422,-500.0,0.0001041,2]
[407658619,1772620238432,-500.0,0.0001041,2]
[407658620,1772620238442,-500.0,0.0001041,2]
[407658621,1772620238452,-500.0,0.0001041,2]
[407658622,1772620238462,-420.50491929,0.0001041,2]
[407658623,1772620238475,-79.49508071,0.0001041,2]
[407658624,1772620238484,-535.06046314,0.0001041,2]
[407658625,1772620238494,-615.22789031,0.0001041,2]
[407658626,1772620238503,-448.65153501,0.00010733,2]
[407658627,1772620238513,-504.91157283,0.00010733,2]
[407658628,1772620238522,-568.78055669,0.0001074,2]
[407658629,1772620238531,-568.78055669,0.00010779,2]
[407658630,1772620238539,-251.75471001,0.0001078,2]
[407658631,1772620238555,-363.04472485,0.00010799,2]
[407658632,1772620238573,-1585.3290749,0.000108,2]
[407658633,1772620238604,-23960.86163528,0.000108,2]
[407658634,1772620238614,-23037.623993,0.000108,2]
[407658635,1772620238624,-25546.19071018,0.000108,2]
[407658636,1772620238637,-534.09808723,0.000108,2]
[407658637,1772620238649,-1055.26154191,0.000108,2]
[407658638,1772620238658,-934.88545949,0.000108,2]
[407658639,1772620238668,-830.23406496,0.000108,2]
[407658640,1772620238678,-323.339952,0.00010809,2]
[407658641,1772620238688,-568.78055669,0.00010819,2]
[407658642,1772620238698,-568.78055669,0.00010858,2]
[407658643,1772620238707,-19870.4052973,0.00010957,2]
[407658644,1772620238720,-850.7181578,0.00010957,2]
[407658645,1772620238729,-500.0,0.00010958,2]
[407658646,1772620238738,-500.0,0.00010958,2]
[407658647,1772620238747,-509.28,0.00010958,2]
[407658648,1772620238757,-500.0,0.00010958,2]
[407658649,1772620238767,-500.0,0.00010958,2]
[407658650,1772620238776,-904.27,0.00010958,2]
[407658651,1772620238786,-500.0,0.00010958,2]
[407658652,1772620238795,-500.0,0.00010958,2]
[407658653,1772620238804,-802.99,0.00010958,2]
[407658654,1772620238814,-500.0,0.00010958,2]
[407658655,1772620238823,-500.0,0.00010958,2]
[407658656,1772620238833,-500.0,0.00010958,2]
[407658657,1772620238843,-500.0,0.00010958,2]
[407658658,1772620238854,-500.0,0.00010958,2]
[407658659,1772620238864,-552.13,0.00010958,2]
[407658660,1772620238874,-578.9,0.00010958,2]
[407658661,1772620238883,-1265.8,0.00010958,2]
[407658662,1772620238892,-500.0,0.00010958,2]
[407658663,1772620238902,-751.02,0.00010958,2]
[407658664,1772620238912,-1282.89,0.00010958,2]
[407658665,1772620238922,-500.0,0.00010958,2]
[407658666,1772620238931,-500.0,0.00010958,2]
[407658667,1772620238941,-500.0,0.00010958,2]
[407658668,1772620238951,-479.53578113,0.00010958,2]
[407658669,1772620238960,-500.0,0.00010958,2]
[407658670,1772620238969,-500.0,0.00010958,2]
[407658671,1772620238978,-605.85,0.00010958,2]
[407658672,1772620238987,-500.0,0.00010958,2]
[407658673,1772620238997,-500.0,0.00010958,2]
[407658674,1772620239006,-500.0,0.00010958,2]
[407658675,1772620239015,-500.0,0.00010958,2]
[407658676,1772620239025,-500.0,0.00010958,2]
[407658677,1772620239034,-1331.28,0.00010958,2]
[407658678,1772620239043,-872.0,0.00010958,2]
[407658679,1772620239052,-500.0,0.00010958,2]
[407658680,1772620239062,-500.0,0.00010958,2]
[407658681,1772620239071,-500.0,0.00010958,2]
[407658682,1772620239081,-709.9,0.00010958,2]
[407658683,1772620239091,-305.67914692,0.00010958,2]
[407658684,1772620239101,-621.81248572,0.00010958,2]
[407658685,1772620239110,-500.0,0.00010958,2]
[407658686,1772620239120,-500.0,0.00010958,2]
[407658687,1772620239129,-500.0,0.00010958,2]
[407658688,1772620239138,-24169.12243376,0.00010958,2]
[407658689,1772620239148,-810.14,0.00010958,2]
[407658690,1772620239157,-500.0,0.00010958,2]
[407658691,1772620239166,-500.0,0.00010958,2]
[407658692,1772620239176,-500.0,0.00010958,2]
[407658693,1772620239185,-500.0,0.00010958,2]
[407658694,1772620239194,-500.0,0.00010958,2]
[407658695,1772620239203,-500.0,0.00010958,2]
[407658696,1772620239213,-544.3,0.00010958,2]
[407658697,1772620239222,-500.0,0.00010958,2]
[407658698,1772620239231,-500.0,0.00010958,2]
[407658699,1772620239240,-500.0,0.00010958,2]
[407658700,1772620239249,-500.0,0.00010958,2]
[407658701,1772620239259,-500.0,0.00010958,2]
[407658702,1772620239269,-500.0,0.00010958,2]
[407658703,1772620239278,-545.39,0.00010958,2]
[407658704,1772620239287,-500.0,0.00010958,2]
[407658705,1772620239296,-500.0,0.00010958,2]
[407658706,1772620239305,-1692.54,0.00010958,2]
[407658707,1772620239315,-500.0,0.00010958,2]
[407658708,1772620239324,-1964.86,0.00010958,2]
[407658709,1772620239333,-500.0,0.00010958,2]
[407658710,1772620239343,-582.94,0.00010958,2]
[407658711,1772620239352,-263.49715932,0.00010958,2]
[407658712,1772620239361,-674.05,0.00010958,2]
[407658713,1772620239370,-500.0,0.00010958,2]
[407658714,1772620239379,-500.0,0.00010958,2]
[407658715,1772620239389,-1414.38,0.00010958,2]
[407658716,1772620239398,-500.0,0.00010958,2]
[407658717,1772620239408,-1407.78,0.00010958,2]
[407658718,1772620239417,-500.0,0.00010958,2]
[407658719,1772620239427,-500.0,0.00010958,2]
[407658720,1772620239436,-500.0,0.00010958,2]
[407658721,1772620239445,-500.0,0.00010958,2]
[407658722,1772620239454,-500.0,0.00010958,2]
[407658723,1772620239463,-500.0,0.00010958,2]
[407658724,1772620239473,-522.36,0.00010958,2]
[407658725,1772620239482,-1230.03,0.00010958,2]
[407658726,1772620239491,-1224.1,0.00010958,2]
[407658727,1772620239500,-161.90345985,0.00010958,2]
[407658728,1772620239510,-1104.99,0.00010958,2]
[407658729,1772620239519,-500.0,0.00010958,2]
[407658730,1772620239529,-500.0,0.00010958,2]
[407658731,1772620239539,-500.0,0.00010958,2]
[407658732,1772620239548,-615.87,0.00010958,2]
[407658733,1772620239558,-1770.15,0.00010958,2]
[407658734,1772620239568,-500.0,0.00010958,2]
[407658735,1772620239577,-875.58,0.00010958,2]
[407658736,1772620239587,-597.96,0.00010958,2]
[407658737,1772620239601,-1088.98,0.00010958,2]
[407658738,1772620239611,-500.0,0.00010958,2]
[407658739,1772620239621,-500.0,0.00010958,2]
[407658740,1772620239635,-538.72,0.00010958,2]
[407658741,1772620239647,-500.0,0.00010958,2]
[407658742,1772620239657,-722.35,0.00010958,2]
[407658743,1772620239666,-425.71481016,0.00010958,2]
[407658744,1772620239678,-500.0,0.00010958,2]
[407658745,1772620239687,-500.0,0.00010958,2]
[407658746,1772620239697,-500.0,0.00010958,2]
[407658747,1772620239707,-500.0,0.00010958,2]
[407658748,1772620239716,-646.21,0.00010958,2]
[407658749,1772620239726,-993.3,0.00010958,2]
[407658750,1772620239735,-500.0,0.00010958,2]
[407658751,1772620239745,-500.0,0.00010958,2]
[407658752,1772620239755,-500.0,0.00010958,2]
[407658753,1772620239765,-500.0,0.00010958,2]
[407658754,1772620239774,-757.5,0.00010958,2]
[407658755,1772620239784,-500.0,0.00010958,2]
[407658756,1772620239794,-500.0,0.00010958,2]
[407658757,1772620239804,-509.86,0.00010958,2]
[407658758,1772620239813,-500.0,0.00010958,2]
[407658759,1772620239824,-509.28,0.00010958,2]
[407658760,1772620239834,-500.0,0.00010958,2]
[407658762,1772620239846,-500.0,0.00010958,2]
[407658764,1772620239856,-513.94,0.00010958,2]
[407658766,1772620239865,-500.0,0.00010958,2]
[407658768,1772620239875,-500.0,0.00010958,2]
[407658769,1772620239884,-500.0,0.00010958,2]
[407658771,1772620239893,-151.0,0.00010958,2]
[407658772,1772620239903,-151.0,0.00010958,2]
[407658773,1772620239913,-151.0,0.00010958,2]
[407658774,1772620239923,-151.0,0.00010958,2]
[407658775,1772620239932,-151.0,0.00010958,2]
[407658776,1772620239941,-500.0,0.00010958,2]
[407658777,1772620239951,-1219.3,0.00010958,2]
[407658778,1772620239960,-1243.21,0.00010958,2]
[407658779,1772620239969,-1500.27,0.00010958,2]
[407658780,1772620239978,-299.58573899,0.00010958,2]
[407658781,1772620239988,-643.79,0.00010958,2]